[Event "European Women Rapid-ch 2023"]
[Site "Monaco"]
[Date "2024.01.13"]
[Round "4.9"]
[White "Javakhishvili, Lela"]
[Black "Unuk, Laura"]
[Result "1-0"]
[ECO "E12"]
[WhiteElo "2433"]
[BlackElo "2346"]
[Annotator "ChessBase"]
[PlyCount "73"]
[EventDate "2023.12.19"]
[EventType "swiss"]
[EventCountry "MNC"]
[SourceTitle "playchess.com"]
[Source "ChessBase"]
[SourceQuality "1"]
[TimeControl "900+10"]

1. d4 {[%emt 0:00:02]} Nf6 {[%emt 0:00:02]} 2. c4 {[%emt 0:00:04]} e6 {[%emt 0:00:02]} 3. Nf3 {[%emt 0:00:02]} b6 {[%emt 0:00:11]} 4. a3 {[%emt 0:00:06]} Bb7 {[%emt 0:00:33]} 5. Nc3 {[%emt 0:00:03]} Be7 {[%emt 0:00:08]} 6. d5 {[%emt 0:00:08]} d6 {[%emt 0:00:51]} 7. e4 {[%emt 0:00:04]} e5 {[%emt 0:00:01]} 8. b4 {[%emt 0:00:19]} a5 {[%emt 0:00:09]} 9. Rb1 {[%emt 0:00:03]} O-O {[%emt 0:00:17]} 10. Bd3 {[%emt 0:00:32]} Bc8 {[%emt 0:00:43]} 11. Nd2 {[%emt 0:00:28]} Ne8 {[%emt 0:00:19]} 12. O-O {[%emt 0:01:04]} g6 {[%emt 0:01:06]} 13. Nb3 {[%emt 0:00:22]} axb4 {[%emt 0:00:06]} 14. axb4 {[%emt 0:00:01]} Ng7 {[%emt 0:01:52]} 15. c5 {[%emt 0:01:53]} bxc5 {[%emt 0:02:07]} 16. bxc5 {[%emt 0:00:03]} dxc5 {[%emt 0:00:08]} 17. Be3 {[%emt 0:00:13]} Nd7 {[%emt 0:01:05]} 18. Bb5 {[%emt 0:01:55]} f5 {[%emt 0:01:22]} 19. d6 {[%emt 0:00:21]} Bxd6 {[%emt 0:02:38]} 20. Qd5+ {[%emt 0:00:11]} Kh8 {[%emt 0:00:01]} 21. Qxa8 {[%emt 0:00:08]} f4 {[%emt 0:00:34]} 22. Bc1 {[%emt 0:00:47]} f3 {[%emt 0:00:37]} 23. g3 {[%emt 0:00:14]} Nb6 {[%emt 0:00:19]} 24. Qa2 {[%emt 0:00:32]} c6 {[%emt 0:01:32]} 25. Bxc6 {[%emt 0:02:12]} Be6 {[%emt 0:00:44]} 26. Rd1 {[%emt 0:01:43]} Qc8 {[%emt 0:00:13]} 27. Bb7 {[%emt 0:01:55]} Qxb7 {[%emt 0:00:40]} 28. Rxd6 {[%emt 0:00:05]} Qc8 {[%emt 0:00:17]} 29. Rxb6 {[%emt 0:01:34]} Bc4 {[%emt 0:00:03]} 30. Nd1 {[%emt 0:00:48]} Qh3 {[%emt 0:01:07]} 31. Ne3 {[%emt 0:00:01]} Nh5 {[%emt 0:00:01]} 32. Qb2 {[%emt 0:00:29]} Re8 {[%emt 0:00:29]} 33. Rb8 {[%emt 0:00:18]} Rxb8 {[%emt 0:00:09]} 34. Qxe5+ {[%emt 0:00:02]} Kg8 {[%emt 0:00:02]} 35. Qxb8+ {[%emt 0:00:02]} Kg7 {[%emt 0:00:06]} 36. Qe5+ {[%emt 0:00:02]} Kg8 {[%emt 0:00:12]} 37. Nd2 {[%emt 0:00:16]} 1-0

[Event "European Women Rapid-ch 2023"]
[Site "Monaco"]
[Date "2024.01.13"]
[Round "4.10"]
[White "Wagner, Dinara"]
[Black "Charkhalashvili, Inga"]
[Result "1/2-1/2"]
[ECO "E12"]
[WhiteElo "2459"]
[BlackElo "2239"]
[Annotator "RC"]
[PlyCount "41"]
[EventDate "2023.12.19"]
[EventType "swiss"]
[EventCountry "MNC"]
[SourceTitle "playchess.com"]
[Source "ChessBase"]
[SourceQuality "1"]
[TimeControl "900+10"]

1. d4 {[%emt 0:01:26]} Nf6 {[%emt 0:00:03]} 2. c4 {[%emt 0:00:06]} e6 {[%emt 0:00:03]} 3. Nf3 {[%emt 0:00:01]} b6 {[%emt 0:00:02]} 4. a3 {[%emt 0:00:02]} Bb7 {[%emt 0:00:03]} 5. Nc3 {[%emt 0:00:04]} Be7 {[%emt 0:00:08]} 6. d5 {[%emt 0:00:14]} d6 {[%emt 0:00:53]} 7. e4 {[%emt 0:00:02]} e5 {[%emt 0:00:02]} 8. Be2 {[%emt 0:00:30]} Nbd7 {[%emt 0:00:15]} 9. b4 {[%emt 0:00:13]} a5 {[%emt 0:00:02]} 10. Bd2 {[%emt 0:00:11]} O-O {[%emt 0:00:15]} 11. O-O {[%emt 0:00:02]} Nh5 {[%emt 0:01:33]} 12. g3 {[%emt 0:01:35]} g6 {[%emt 0:00:22]} 13. Ne1 {[%emt 0:01:38]} Ng7 {[%emt 0:00:02]} 14. Nd3 {[%emt 0:00:02]} f5 {[%emt 0:00:59]} 15. f4 {[%emt 0:00:11]} Bf6 {[%emt 0:00:31]} 16. fxe5 {[%emt 0:02:02]} Nxe5 {[%emt 0:00:13]} 17. Nf4 {[%emt 0:00:04]} axb4 {[%emt 0:00:18]} 18. axb4 {[%emt 0:00:10]} Rxa1 {[%emt 0:01:05]} 19. Qxa1 {[%emt 0:00:01]} g5 {[%emt 0:01:05]} 20. Ng2 {[%emt 0:02:36]} fxe4 {[%emt 0:00:31]} 21. Qa7 {[%emt 0:00:41]} 1/2-1/2

[Event "European Women Rapid-ch 2023"]
[Site "Monaco"]
[Date "2024.01.13"]
[Round "4.11"]
[White "Vega Gutierrez, Sabrina"]
[Black "Garcia Martin, Marta"]
[Result "1-0"]
[ECO "B20"]
[WhiteElo "2378"]
[BlackElo "2342"]
[Annotator "ChessBase"]
[PlyCount "155"]
[EventDate "2023.12.19"]
[EventType "swiss"]
[EventCountry "MNC"]
[SourceTitle "playchess.com"]
[Source "ChessBase"]
[SourceQuality "1"]
[TimeControl "900+10"]

1. e4 {[%emt 0:00:01]} c5 {[%emt 0:00:03]} 2. b3 {[%emt 0:00:02]} Nc6 {[%emt 0:00:07]} 3. Bb2 {[%emt 0:00:02]} a6 {[%emt 0:00:27]} 4. Nf3 {[%emt 0:01:06]} d6 {[%emt 0:00:02]} 5. d4 {[%emt 0:00:14]} cxd4 {[%emt 0:00:01]} 6. Nxd4 {[%emt 0:00:02]} Bd7 {[%emt 0:00:32]} 7. Bd3 {[%emt 0:00:28]} Nf6 {[%emt 0:00:11]} 8. O-O {[%emt 0:00:38]} e6 {[%emt 0:00:59]} 9. c4 {[%emt 0:00:18]} Be7 {[%emt 0:00:42]} 10. Re1 {[%emt 0:00:17]} O-O {[%emt 0:00:10]} 11. Bf1 {[%emt 0:00:16]} Ne5 {[%emt 0:02:43]} 12. Nc3 {[%emt 0:00:07]} Qc7 {[%emt 0:00:32]} 13. h3 {[%emt 0:00:13]} Rad8 {[%emt 0:00:43]} 14. Rc1 {[%emt 0:01:52]} Rfe8 {[%emt 0:01:41]} 15. a4 {[%emt 0:00:00]} Qb6 {[%emt 0:00:24]} 16. Ba3 {[%emt 0:01:04]} Bf8 {[%emt 0:01:43]} 17. Qd2 {[%emt 0:01:16]} Ng6 {[%emt 0:00:50]} 18. b4 {[%emt 0:00:45]} Rc8 {[%emt 0:01:40]} 19. Nf3 {[%emt 0:00:39]} Red8 {[%emt 0:00:27]} 20. a5 {[%emt 0:02:36]} Qa7 {[%emt 0:00:25]} 21. Qe3 {[%emt 0:02:13]} Qxe3 {[%emt 0:00:43]} 22. Rxe3 {[%emt 0:00:02]} Be8 {[%emt 0:00:27]} 23. Ree1 {[%emt 0:00:57]} Nd7 {[%emt 0:00:05]} 24. g3 {[%emt 0:00:16]} b6 {[%emt 0:01:05]} 25. axb6 {[%emt 0:01:04]} Nxb6 {[%emt 0:00:01]} 26. Nb1 {[%emt 0:00:10]} Rc7 {[%emt 0:00:31]} 27. c5 {[%emt 0:00:51]} dxc5 {[%emt 0:00:03]} 28. bxc5 {[%emt 0:00:02]} Na4 {[%emt 0:00:08]} 29. Red1 {[%emt 0:01:27]} Rxd1 {[%emt 0:00:51]} 30. Rxd1 {[%emt 0:00:01]} Bxc5 {[%emt 0:00:04]} 31. Bxa6 {[%emt 0:00:46]} Kf8 {[%emt 0:00:04]} 32. Bxc5+ {[%emt 0:00:11]} Nxc5 {[%emt 0:00:02]} 33. Bf1 {[%emt 0:00:28]} Nxe4 {[%emt 0:00:05]} 34. Nbd2 {[%emt 0:00:07]} Nc3 {[%emt 0:00:39]} 35. Ra1 {[%emt 0:00:05]} Bc6 {[%emt 0:00:15]} 36. Ra3 {[%emt 0:00:10]} Ne4 {[%emt 0:00:31]} 37. Nxe4 {[%emt 0:00:05]} Bxe4 {[%emt 0:00:01]} 38. Ng5 {[%emt 0:00:05]} Bd5 {[%emt 0:00:18]} 39. Nxh7+ {[%emt 0:00:12]} Ke7 {[%emt 0:00:40]} 40. Ng5 {[%emt 0:00:05]} Rc1 {[%emt 0:00:33]} 41. Nf3 {[%emt 0:00:05]} e5 {[%emt 0:00:17]} 42. Nd2 {[%emt 0:00:34]} Rd1 {[%emt 0:00:06]} 43. Rd3 {[%emt 0:00:03]} Bc6 {[%emt 0:00:06]} 44. Nc4 {[%emt 0:00:10]} Rc1 {[%emt 0:00:06]} 45. Ne3 {[%emt 0:00:15]} e4 {[%emt 0:00:23]} 46. Rd1 {[%emt 0:00:11]} Rc5 {[%emt 0:00:08]} 47. Be2 {[%emt 0:00:07]} Ne5 {[%emt 0:00:06]} 48. Nf5+ {[%emt 0:00:18]} Kf6 {[%emt 0:00:02]} 49. g4 {[%emt 0:00:04]} g6 {[%emt 0:00:12]} 50. Rd6+ {[%emt 0:00:12]} Kg5 {[%emt 0:00:01]} 51. Nd4 {[%emt 0:00:01]} Rc1+ {[%emt 0:00:26]} 52. Kg2 {[%emt 0:00:07]} Bb7 {[%emt 0:00:10]} 53. Kg3 {[%emt 0:00:08]} Rc3+ {[%emt 0:00:01]} 54. Kh2 {[%emt 0:00:07]} f5 {[%emt 0:00:22]} 55. Ne6+ {[%emt 0:00:32]} Kh4 {[%emt 0:00:06]} 56. Rd8 {[%emt 0:00:08]} Rxh3+ {[%emt 0:00:05]} 57. Kg1 {[%emt 0:00:14]} Nf7 {[%emt 0:00:20]} 58. Rd7 {[%emt 0:00:05]} Ng5 {[%emt 0:00:12]} 59. Nxg5 {[%emt 0:00:08]} Kxg5 {[%emt 0:00:01]} 60. Rxb7 {[%emt 0:00:03]} fxg4 {[%emt 0:00:14]} 61. Re7 {[%emt 0:00:15]} g3 {[%emt 0:00:12]} 62. Kg2 {[%emt 0:00:03]} Rh4 {[%emt 0:00:14]} 63. Kxg3 {[%emt 0:00:20]} Rf4 {[%emt 0:00:07]} 64. Re5+ {[%emt 0:00:06]} Rf5 {[%emt 0:00:01]} 65. Rxe4 {[%emt 0:00:02]} Ra5 {[%emt 0:00:02]} 66. Rg4+ {[%emt 0:00:11]} Kf6 {[%emt 0:00:01]} 67. Rf4+ {[%emt 0:00:02]} Kg5 {[%emt 0:00:20]} 68. Bd3 {[%emt 0:00:03]} Ra3 {[%emt 0:00:13]} 69. Rd4 {[%emt 0:00:08]} Kf6 {[%emt 0:00:22]} 70. Kg4 {[%emt 0:00:09]} g5 {[%emt 0:00:06]} 71. f3 {[%emt 0:00:26]} Ra1 {[%emt 0:00:05]} 72. Rd6+ {[%emt 0:00:04]} Ke5 {[%emt 0:00:03]} 73. Rg6 {[%emt 0:00:14]} Rg1+ {[%emt 0:00:02]} 74. Kh5 {[%emt 0:00:06]} Kf4 {[%emt 0:00:37]} 75. Rf6+ {[%emt 0:00:09]} Ke3 {[%emt 0:00:06]} 76. Ba6 {[%emt 0:00:23]} Kd4 {[%emt 0:00:13]} 77. Bc8 {[%emt 0:00:05]} Ke3 {[%emt 0:00:09]} 78. Bg4 {[%emt 0:00:03]} 1-0

[Event "European Women Rapid-ch 2023"]
[Site "Monaco"]
[Date "2024.01.13"]
[Round "4.12"]
[White "Pavlidou, Ekaterini"]
[Black "Khotenashvili, Bella"]
[Result "0-1"]
[ECO "A43"]
[WhiteElo "2206"]
[BlackElo "2467"]
[Annotator "RC"]
[PlyCount "66"]
[EventDate "2023.12.19"]
[EventType "swiss"]
[EventCountry "MNC"]
[SourceTitle "playchess.com"]
[Source "ChessBase"]
[SourceQuality "1"]
[TimeControl "900+10"]

1. d4 {[%emt 0:00:03]} g6 {[%emt 0:00:01]} 2. e4 {[%emt 0:00:03]} Bg7 {[%emt 0:00:01]} 3. c4 {[%emt 0:00:05]} c5 {[%emt 0:00:03]} 4. d5 {[%emt 0:00:04]} d6 {[%emt 0:00:02]} 5. Nc3 {[%emt 0:00:06]} e6 {[%emt 0:00:04]} 6. Bd3 {[%emt 0:00:09]} Ne7 {[%emt 0:00:06]} 7. Nge2 {[%emt 0:00:12]} O-O {[%emt 0:00:14]} 8. Be3 {[%emt 0:00:31]} Nd7 {[%emt 0:00:31]} 9. f4 {[%emt 0:00:41]} exd5 {[%emt 0:00:22]} 10. exd5 {[%emt 0:01:20]} Re8 {[%emt 0:01:26]} 11. Qd2 {[%emt 0:00:13]} Nf6 {[%emt 0:00:44]} 12. O-O-O {[%emt 0:00:31]} a6 {[%emt 0:00:54]} 13. h3 {[%emt 0:00:18]} b5 {[%emt 0:00:35]} 14. g4 {[%emt 0:00:59]} Nd7 {[%emt 0:00:41]} 15. Rdf1 {[%emt 0:02:19]} bxc4 {[%emt 0:00:52]} 16. Bxc4 {[%emt 0:01:10]} Nb6 {[%emt 0:00:33]} 17. Bb3 {[%emt 0:00:21]} f5 {[%emt 0:00:24]} 18. g5 {[%emt 0:00:56]} a5 {[%emt 0:00:39]} 19. a3 {[%emt 0:00:25]} Ba6 {[%emt 0:00:13]} 20. Rf2 {[%emt 0:00:15]} Rb8 {[%emt 0:00:14]} 21. h4 {[%emt 0:01:12]} Bc4 {[%emt 0:00:16]} 22. Bc2 {[%emt 0:01:44]} Nexd5 {[%emt 0:00:19]} 23. Rh3 {[%emt 0:01:03]} Qe7 {[%emt 0:00:06]} 24. Nd1 {[%emt 0:00:04]} Qb7 {[%emt 0:01:49]} 25. b3 {[%emt 0:00:18]} Ba6 {[%emt 0:01:22]} 26. h5 {[%emt 0:00:02]} a4 {[%emt 0:00:50]} 27. hxg6 {[%emt 0:00:26]} hxg6 {[%emt 0:00:01]} 28. Rfh2 {[%emt 0:00:18]} axb3 {[%emt 0:00:27]} 29. Bxb3 {[%emt 0:00:24]} Nc4 {[%emt 0:00:03]} 30. Qd3 {[%emt 0:00:46]} Ncxe3 {[%emt 0:00:55]} 31. Nxe3 {[%emt 0:00:02]} Bxd3 {[%emt 0:00:40]} 32. Bxd5+ {[%emt 0:00:09]} Qxd5 {[%emt 0:00:02]} 33. Nxd5 {[%emt 0:00:01]} Rxe2 {[%emt 0:00:16]} 0-1

[Event "European Women Rapid-ch 2023"]
[Site "Monaco"]
[Date "2024.01.13"]
[Round "4.13"]
[White "Daulyte-Cornette, Deimante"]
[Black "Polterauer, Chiara"]
[Result "1-0"]
[ECO "C27"]
[WhiteElo "2372"]
[BlackElo "2189"]
[Annotator "ChessBase"]
[PlyCount "49"]
[EventDate "2023.12.19"]
[EventType "swiss"]
[EventCountry "MNC"]
[SourceTitle "playchess.com"]
[Source "ChessBase"]
[SourceQuality "1"]
[TimeControl "900+10"]

1. e4 {[%emt 0:00:02]} e5 {[%emt 0:00:02]} 2. Nc3 {[%emt 0:00:02]} Nc6 {[%emt 0:00:11]} 3. Bc4 {[%emt 0:00:03]} Nf6 {[%emt 0:00:18]} 4. d3 {[%emt 0:00:04]} Bc5 {[%emt 0:00:09]} 5. f4 {[%emt 0:00:13]} d6 {[%emt 0:00:15]} 6. Na4 {[%emt 0:00:50]} Bxg1 {[%emt 0:01:37]} 7. Rxg1 {[%emt 0:00:02]} Na5 {[%emt 0:00:12]} 8. Bb3 {[%emt 0:00:55]} Nxb3 {[%emt 0:00:22]} 9. axb3 {[%emt 0:00:02]} Ng4 {[%emt 0:00:09]} 10. Rh1 {[%emt 0:03:50]} Qh4+ {[%emt 0:00:11]} 11. g3 {[%emt 0:00:03]} Qh3 {[%emt 0:00:14]} 12. Qe2 {[%emt 0:00:04]} Bd7 {[%emt 0:02:00]} 13. Nc3 {[%emt 0:01:00]} a6 {[%emt 0:01:03]} 14. Bd2 {[%emt 0:01:37]} h5 {[%emt 0:00:53]} 15. O-O-O {[%emt 0:00:19]} O-O-O {[%emt 0:00:07]} 16. Rdf1 {[%emt 0:01:25]} g6 {[%emt 0:01:56]} 17. fxe5 {[%emt 0:00:24]} Nxe5 {[%emt 0:00:13]} 18. Bg5 {[%emt 0:00:57]} Rde8 {[%emt 0:01:15]} 19. Bf6 {[%emt 0:00:36]} Rh7 {[%emt 0:00:03]} 20. Nd5 {[%emt 0:00:07]} c6 {[%emt 0:01:19]} 21. Nf4 {[%emt 0:00:51]} Qg4 {[%emt 0:00:18]} 22. Qf2 {[%emt 0:00:13]} h4 {[%emt 0:00:55]} 23. gxh4 {[%emt 0:00:16]} g5 {[%emt 0:01:38]} 24. Bxg5 {[%emt 0:00:07]} Ng6 {[%emt 0:01:03]} 25. h3 {[%emt 0:00:19]} 1-0

[Event "European Women Rapid-ch 2023"]
[Site "Monaco"]
[Date "2024.01.13"]
[Round "4.14"]
[White "Zhukova, Natalia"]
[Black "Radeva, Viktoria"]
[Result "1/2-1/2"]
[ECO "E02"]
[WhiteElo "2301"]
[BlackElo "2325"]
[Annotator "ChessBase"]
[PlyCount "94"]
[EventDate "2023.12.19"]
[EventType "swiss"]
[EventCountry "MNC"]
[SourceTitle "playchess.com"]
[Source "ChessBase"]
[SourceQuality "1"]
[TimeControl "900+10"]

1. c4 {[%emt 0:00:02]} e6 {[%emt 0:00:02]} 2. Nf3 {[%emt 0:00:04]} d5 {[%emt 0:00:04]} 3. g3 {[%emt 0:00:02]} Nf6 {[%emt 0:00:21]} 4. Bg2 {[%emt 0:00:02]} dxc4 {[%emt 0:00:04]} 5. Qa4+ {[%emt 0:00:23]} Nbd7 {[%emt 0:00:16]} 6. Qxc4 {[%emt 0:00:23]} a6 {[%emt 0:00:18]} 7. Qc2 {[%emt 0:00:43]} c5 {[%emt 0:01:07]} 8. O-O {[%emt 0:01:20]} Be7 {[%emt 0:00:10]} 9. d4 {[%emt 0:00:45]} O-O {[%emt 0:00:51]} 10. Rd1 {[%emt 0:00:09]} cxd4 {[%emt 0:02:24]} 11. Nxd4 {[%emt 0:00:02]} Bc5 {[%emt 0:00:31]} 12. Nc3 {[%emt 0:00:52]} Qe7 {[%emt 0:00:28]} 13. h3 {[%emt 0:01:02]} Nb6 {[%emt 0:01:42]} 14. Nb3 {[%emt 0:01:48]} Bb4 {[%emt 0:01:49]} 15. a3 {[%emt 0:01:16]} Bxc3 {[%emt 0:00:08]} 16. Qxc3 {[%emt 0:00:08]} Nbd5 {[%emt 0:03:46]} 17. Qe1 {[%emt 0:00:22]} Bd7 {[%emt 0:00:19]} 18. e4 {[%emt 0:00:51]} Ba4 {[%emt 0:00:39]} 19. Rd3 {[%emt 0:01:20]} Nb6 {[%emt 0:01:14]} 20. Be3 {[%emt 0:01:57]} Nbd7 {[%emt 0:00:05]} 21. Rc3 {[%emt 0:00:49]} Rac8 {[%emt 0:00:10]} 22. Rac1 {[%emt 0:00:07]} Rxc3 {[%emt 0:00:21]} 23. Qxc3 {[%emt 0:00:08]} Bc6 {[%emt 0:00:11]} 24. Qc2 {[%emt 0:02:48]} e5 {[%emt 0:00:08]} 25. Na5 {[%emt 0:00:13]} Rc8 {[%emt 0:00:18]} 26. Qb3 {[%emt 0:00:30]} Nb8 {[%emt 0:00:47]} 27. Bg5 {[%emt 0:00:58]} h6 {[%emt 0:00:20]} 28. Bxf6 {[%emt 0:00:03]} gxf6 {[%emt 0:00:08]} 29. h4 {[%emt 0:00:21]} Rd8 {[%emt 0:00:08]} 30. Rd1 {[%emt 0:00:21]} Rxd1+ {[%emt 0:00:15]} 31. Qxd1 {[%emt 0:00:01]} Qc7 {[%emt 0:00:05]} 32. Nc4 {[%emt 0:00:18]} Nd7 {[%emt 0:00:21]} 33. Ne3 {[%emt 0:00:04]} Kh7 {[%emt 0:00:15]} 34. Nf5 {[%emt 0:00:04]} Qd8 {[%emt 0:00:09]} 35. Qg4 {[%emt 0:00:30]} Qf8 {[%emt 0:00:01]} 36. Bf1 {[%emt 0:00:06]} Nc5 {[%emt 0:00:06]} 37. f3 {[%emt 0:00:08]} b5 {[%emt 0:00:25]} 38. Qh5 {[%emt 0:00:08]} Ne6 {[%emt 0:00:15]} 39. Bh3 {[%emt 0:00:10]} Nd4 {[%emt 0:00:22]} 40. Ne3 {[%emt 0:00:18]} Kg7 {[%emt 0:00:30]} 41. Kh2 {[%emt 0:00:06]} Qc5 {[%emt 0:00:03]} 42. Nf5+ {[%emt 0:00:17]} Nxf5 {[%emt 0:00:04]} 43. Bxf5 {[%emt 0:00:01]} Qf2+ {[%emt 0:00:05]} 44. Kh3 {[%emt 0:00:02]} Qf1+ {[%emt 0:00:04]} 45. Kh2 {[%emt 0:00:01]} Qf2+ {[%emt 0:00:06]} 46. Kh3 {[%emt 0:00:01]} Qf1+ {[%emt 0:00:01]} 47. Kh2 {[%emt 0:00:02]} Qf2+ {[%emt 0:00:03]} 1/2-1/2

[Event "European Women Rapid-ch 2023"]
[Site "Monaco"]
[Date "2024.01.13"]
[Round "4.15"]
[White "Kubicka, Anna"]
[Black "Bensdorp-De Labaca, Marlies"]
[Result "1/2-1/2"]
[ECO "C06"]
[WhiteElo "2278"]
[BlackElo "2237"]
[Annotator "ChessBase"]
[PlyCount "134"]
[EventDate "2023.12.19"]
[EventType "swiss"]
[EventCountry "MNC"]
[SourceTitle "playchess.com"]
[Source "ChessBase"]
[SourceQuality "1"]
[TimeControl "900+10"]

1. e4 {[%emt 0:00:03]} e6 {[%emt 0:00:00]} 2. d4 {[%emt 0:00:02]} d5 {[%emt 0:00:01]} 3. Nd2 {[%emt 0:00:01]} Nf6 {[%emt 0:00:04]} 4. e5 {[%emt 0:00:02]} Nfd7 {[%emt 0:00:01]} 5. Bd3 {[%emt 0:00:04]} c5 {[%emt 0:00:01]} 6. c3 {[%emt 0:00:02]} b6 {[%emt 0:00:15]} 7. a4 {[%emt 0:00:06]} cxd4 {[%emt 0:00:15]} 8. cxd4 {[%emt 0:00:04]} Ba6 {[%emt 0:00:02]} 9. Bb5 {[%emt 0:00:24]} Qc8 {[%emt 0:00:24]} 10. Qe2 {[%emt 0:00:28]} Bb4 {[%emt 0:01:38]} 11. Ngf3 {[%emt 0:01:12]} O-O {[%emt 0:00:51]} 12. O-O {[%emt 0:00:03]} h6 {[%emt 0:00:57]} 13. Nh4 {[%emt 0:01:27]} Bxb5 {[%emt 0:00:19]} 14. axb5 {[%emt 0:00:02]} Qc2 {[%emt 0:00:15]} 15. f4 {[%emt 0:01:05]} Be7 {[%emt 0:00:37]} 16. Qg4 {[%emt 0:01:13]} Qd3 {[%emt 0:00:49]} 17. Ndf3 {[%emt 0:00:23]} Bxh4 {[%emt 0:00:32]} 18. Qxh4 {[%emt 0:00:42]} Qxb5 {[%emt 0:00:02]} 19. g4 {[%emt 0:02:20]} f6 {[%emt 0:03:02]} 20. f5 {[%emt 0:01:53]} fxe5 {[%emt 0:01:40]} 21. fxe6 {[%emt 0:01:47]} Nf6 {[%emt 0:00:35]} 22. e7 {[%emt 0:01:15]} Rf7 {[%emt 0:01:26]} 23. Nxe5 {[%emt 0:01:02]} Rxe7 {[%emt 0:00:19]} 24. Rxf6 {[%emt 0:00:22]} gxf6 {[%emt 0:00:07]} 25. Qxf6 {[%emt 0:00:51]} Qb4 {[%emt 0:01:45]} 26. Qg6+ {[%emt 0:01:17]} Rg7 {[%emt 0:00:06]} 27. Qe6+ {[%emt 0:00:03]} Kh7 {[%emt 0:00:23]} 28. Qxh6+ {[%emt 0:00:11]} Kg8 {[%emt 0:00:02]} 29. Qe6+ {[%emt 0:00:18]} Kh7 {[%emt 0:00:01]} 30. Be3 {[%emt 0:00:35]} Na6 {[%emt 0:00:39]} 31. Qh6+ {[%emt 0:00:14]} Kg8 {[%emt 0:00:01]} 32. Qe6+ {[%emt 0:00:13]} Kh7 {[%emt 0:00:00]} 33. Rf1 {[%emt 0:00:04]} Nc7 {[%emt 0:00:07]} 34. Qh6+ {[%emt 0:00:14]} Kg8 {[%emt 0:00:00]} 35. Ng6 {[%emt 0:00:08]} Rh7 {[%emt 0:00:22]} 36. Qg5 {[%emt 0:00:02]} Rg7 {[%emt 0:00:09]} 37. Qh5 {[%emt 0:00:09]} Rh7 {[%emt 0:00:09]} 38. Qg5 {[%emt 0:00:43]} Rg7 {[%emt 0:00:04]} 39. Qf6 {[%emt 0:00:13]} Re8 {[%emt 0:00:40]} 40. Bh6 {[%emt 0:00:03]} Rh7 {[%emt 0:00:26]} 41. Nh4 {[%emt 0:00:15]} Qe7 {[%emt 0:00:09]} 42. Qg6+ {[%emt 0:00:06]} Kh8 {[%emt 0:00:06]} 43. Nf5 {[%emt 0:00:04]} Qf7 {[%emt 0:00:58]} 44. Qd6 {[%emt 0:00:05]} Re6 {[%emt 0:00:30]} 45. Qd8+ {[%emt 0:00:17]} Re8 {[%emt 0:00:06]} 46. Qg5 {[%emt 0:00:10]} Ne6 {[%emt 0:00:18]} 47. Qe3 {[%emt 0:00:09]} Nf8 {[%emt 0:00:31]} 48. Qf4 {[%emt 0:00:12]} Ng6 {[%emt 0:00:06]} 49. Qg5 {[%emt 0:00:08]} Rg8 {[%emt 0:00:36]} 50. Nd6 {[%emt 0:00:13]} Qe6 {[%emt 0:00:03]} 51. Nf5 {[%emt 0:00:23]} Ne7 {[%emt 0:00:19]} 52. Bg7+ {[%emt 0:00:13]} Rhxg7 {[%emt 0:00:11]} 53. Nxg7 {[%emt 0:00:03]} Rxg7 {[%emt 0:00:03]} 54. Qh5+ {[%emt 0:00:02]} Rh7 {[%emt 0:00:03]} 55. Qe8+ {[%emt 0:00:02]} Kg7 {[%emt 0:00:14]} 56. Qf8+ {[%emt 0:00:20]} Kg6 {[%emt 0:00:01]} 57. g5 {[%emt 0:00:15]} Qe3+ {[%emt 0:00:15]} 58. Kh1 {[%emt 0:00:02]} Qe4+ {[%emt 0:00:07]} 59. Kg1 {[%emt 0:00:01]} Qxd4+ {[%emt 0:00:02]} 60. Kh1 {[%emt 0:00:04]} Qe4+ {[%emt 0:00:02]} 61. Kg1 {[%emt 0:00:02]} Qe3+ {[%emt 0:00:31]} 62. Kh1 {[%emt 0:00:01]} Qe4+ {[%emt 0:00:15]} 63. Kg1 {[%emt 0:00:01]} Qe3+ {[%emt 0:00:21]} 64. Kh1 {[%emt 0:00:01]} Qe4+ {[%emt 0:00:06]} 65. Kg1 {[%emt 0:00:01]} Qe3+ {[%emt 0:00:21]} 66. Kh1 {[%emt 0:00:03]} Qe4+ {[%emt 0:00:05]} 67. Kg1 {[%emt 0:00:01]} Qe3+ {[%emt 0:00:25]} 1/2-1/2

[Event "European Women Rapid-ch 2023"]
[Site "Monaco"]
[Date "2024.01.13"]
[Round "4.16"]
[White "Rudzinska, Michalina"]
[Black "Kulon, Klaudia"]
[Result "1/2-1/2"]
[ECO "C48"]
[WhiteElo "2241"]
[BlackElo "2323"]
[Annotator "ChessBase"]
[PlyCount "88"]
[EventDate "2023.12.19"]
[EventType "swiss"]
[EventCountry "MNC"]
[SourceTitle "playchess.com"]
[Source "ChessBase"]
[SourceQuality "1"]
[TimeControl "900+10"]

1. e4 {[%emt 0:00:02]} e5 {[%emt 0:00:02]} 2. Nf3 {[%emt 0:00:02]} Nc6 {[%emt 0:00:01]} 3. Nc3 {[%emt 0:00:03]} Nf6 {[%emt 0:00:03]} 4. Bb5 {[%emt 0:00:03]} Bd6 {[%emt 0:00:17]} 5. d3 {[%emt 0:00:06]} h6 {[%emt 0:00:47]} 6. a3 {[%emt 0:00:07]} Nd4 {[%emt 0:01:07]} 7. Nxd4 {[%emt 0:00:25]} exd4 {[%emt 0:00:01]} 8. Ne2 {[%emt 0:00:04]} c5 {[%emt 0:00:02]} 9. O-O {[%emt 0:00:59]} O-O {[%emt 0:00:32]} 10. Nf4 {[%emt 0:02:37]} a6 {[%emt 0:01:04]} 11. Bc4 {[%emt 0:00:02]} Bxf4 {[%emt 0:00:15]} 12. Bxf4 {[%emt 0:00:03]} d5 {[%emt 0:00:02]} 13. exd5 {[%emt 0:00:08]} Nxd5 {[%emt 0:00:02]} 14. Qf3 {[%emt 0:00:50]} Be6 {[%emt 0:00:40]} 15. Bg3 {[%emt 0:01:19]} b5 {[%emt 0:01:17]} 16. Ba2 {[%emt 0:00:06]} Qd7 {[%emt 0:00:14]} 17. Rfe1 {[%emt 0:00:07]} Rad8 {[%emt 0:00:41]} 18. Re5 {[%emt 0:00:29]} f6 {[%emt 0:00:19]} 19. Re2 {[%emt 0:01:46]} Bg4 {[%emt 0:02:00]} 20. Qxd5+ {[%emt 0:02:36]} Qxd5 {[%emt 0:00:01]} 21. Bxd5+ {[%emt 0:00:02]} Rxd5 {[%emt 0:00:02]} 22. f3 {[%emt 0:00:02]} Bd7 {[%emt 0:00:06]} 23. Rae1 {[%emt 0:00:26]} c4 {[%emt 0:00:37]} 24. Bf2 {[%emt 0:02:11]} cxd3 {[%emt 0:01:13]} 25. cxd3 {[%emt 0:00:01]} Bf5 {[%emt 0:00:02]} 26. g4 {[%emt 0:00:50]} Bxd3 {[%emt 0:01:02]} 27. Rd2 {[%emt 0:00:02]} Bc4 {[%emt 0:00:01]} 28. Rxd4 {[%emt 0:00:21]} Rc8 {[%emt 0:00:30]} 29. Rc1 {[%emt 0:01:03]} Rxd4 {[%emt 0:00:03]} 30. Bxd4 {[%emt 0:00:01]} Re8 {[%emt 0:00:09]} 31. Rc2 {[%emt 0:00:31]} Re1+ {[%emt 0:00:12]} 32. Kf2 {[%emt 0:00:36]} Rd1 {[%emt 0:00:24]} 33. Bc3 {[%emt 0:00:07]} Kf7 {[%emt 0:00:06]} 34. Rd2 {[%emt 0:00:06]} Rf1+ {[%emt 0:00:09]} 35. Kg2 {[%emt 0:00:14]} Ke6 {[%emt 0:00:25]} 36. Rd4 {[%emt 0:01:51]} Rc1 {[%emt 0:00:17]} 37. Re4+ {[%emt 0:00:05]} Kd6 {[%emt 0:01:12]} 38. Rd4+ {[%emt 0:00:12]} Bd5 {[%emt 0:00:14]} 39. Rd2 {[%emt 0:00:15]} Kc6 {[%emt 0:00:05]} 40. Re2 {[%emt 0:00:08]} Kd7 {[%emt 0:01:48]} 41. Rd2 {[%emt 0:00:08]} Kd6 {[%emt 0:00:10]} 42. Kf2 {[%emt 0:00:14]} Rh1 {[%emt 0:02:31]} 43. Kg2 {[%emt 0:00:10]} Rc1 {[%emt 0:00:06]} 44. Kf2 {[%emt 0:00:04]} Rh1 {[%emt 0:00:02]} 1/2-1/2